bitfinex/quotes_SOLUSD_20250731
["timestamp","ask_amount","ask_price","bid_price","bid_amount"]
[1753966120150,47.94818431,179.28,179.27,0.77]
[1753966121368,39.7,179.28,179.27,0.77]
[1753966121562,47.94818431,179.28,179.27,0.77]
[1753966122660,47.94818431,179.28,179.27,0.06]
[1753966122851,54.17605133,179.28,179.27,0.06]
[1753966123976,56.41137533,179.28,179.27,0.06]
[1753966124269,48.16319102,179.28,179.27,0.06]
[1753966124473,56.41137533,179.28,179.27,0.06]
[1753966125359,55.76137533,179.28,179.27,0.06]
[1753966125583,56.41137533,179.28,179.27,0.06]
[1753966126371,55.76137533,179.28,179.27,0.06]
[1753966126958,55.74137533,179.28,179.27,0.06]
[1753966128169,47.92818431,179.28,179.27,0.06]
[1753966128659,53.50605133,179.28,179.27,0.06]
[1753966128858,2.235074,179.29,179.27,0.77]
[1753966129185,39.66,179.29,179.27,0.77]
[1753966130887,39.66,179.29,179.27,6.34811667]
[1753966131061,8.24818431,179.34,179.29,5.57755591]
[1753966131267,39.66,179.33,179.3,0.66]
[1753966131460,39.66,179.33,179.3,8.90818431]
[1753966131661,39.66,179.33,179.31,0.66]
[1753966131958,39.66,179.33,179.32,0.66]
[1753966133162,47.90818431,179.33,179.29,0.66]
[1753966133569,47.90818431,179.33,179.3,0.66]
[1753966133771,47.90818431,179.33,179.31,0.66]
[1753966135274,47.90818431,179.33,179.28,13.82599202]
[1753966135493,47.90818431,179.33,179.31,0.66]
[1753966139669,39.66,179.33,179.31,0.66]
[1753966139870,47.90818431,179.33,179.31,0.66]
[1753966140380,47.90818431,179.33,179.29,6.23755404]
[1753966140598,47.90818431,179.33,179.3,0.66]
[1753966140899,39.66,179.33,179.3,0.66]
[1753966141078,39.66,179.33,179.31,0.66]
[1753966141281,26.73,179.38,179.32,5.04577962]
[1753966141282,5.04577962,179.37,179.32,5.04577962]
[1753966141471,5.04577962,179.35,179.3,22.49046359]
[1753966141678,5.04577962,179.35,179.31,0.66]
[1753966141897,39.62,179.34,179.31,5.04577962]
[1753966142103,0.03,179.38,179.32,5.70577962]
[1753966142267,44.66577962,179.37,179.32,5.70577962]
[1753966142588,5.04577962,179.36,179.33,0.66]
[1753966142776,47.83956448,179.37,179.32,8.21956448]
[1753966142981,47.83956448,179.37,179.34,0.66]
[1753966143169,8.21956448,179.36,179.32,8.87956448]
[1753966143365,8.21956448,179.36,179.33,6.2363031]
[1753966143793,8.21956448,179.36,179.33,0.66]
[1753966144181,8.21956448,179.36,179.33,6.23617525]
[1753966144486,8.21956448,179.36,179.33,5.57617525]
[1753966144696,47.83956448,179.37,179.34,0.66]
[1753966144881,39.62,179.37,179.34,0.66]
[1753966145079,47.83956448,179.37,179.34,0.66]
[1753966146589,47.83956448,179.37,179.32,13.79608097]
[1753966146590,8.21956448,179.36,179.32,13.79608097]
[1753966146788,40.32,179.37,179.32,14.45608097]
[1753966146996,8.21956448,179.36,179.33,0.66]
[1753966147292,8.21956448,179.36,179.34,0.66]
[1753966147798,39.65,179.38,179.34,6.23599617]
[1753966147972,47.86956448,179.38,179.34,0.66]
[1753966148173,39.65,179.38,179.35,8.87956448]
[1753966148504,0.03,179.38,179.37,25.00424845]
[1753966148875,0.03,179.38,179.37,25.66424845]
[1753966149295,0.03,179.38,179.37,17.44468397]
[1753966149598,0.03,179.39,179.37,25.66424845]
[1753966149809,0.1,179.42,179.4,6.144]
[1753966149973,0.1,179.42,179.41,27.08803098]
[1753966150308,0.03,179.44,179.41,35.96759546]
[1753966150512,0.03,179.44,179.43,25.00424845]
[1753966150995,0.03,179.44,179.43,25.66424845]
[1753966151977,0.03,179.44,179.43,31.23745248]
[1753966153279,0.03,179.44,179.43,31.79477288]
[1753966154376,0.03,179.45,179.43,57.79477288]
[1753966154572,0.03,179.45,179.44,65.28424845]
[1753966155986,0.03,179.45,179.44,23.01757741]
[1753966156298,0.03,179.45,179.44,31.23714189]
[1753966157076,0.03,179.45,179.44,25.00424845]
[1753966157698,0.03,179.45,179.44,16.78468397]
[1753966157901,0.03,179.45,179.44,25.66424845]
[1753966158199,0.03,179.45,179.44,16.78468397]
[1753966159285,0.03,179.45,179.44,30.57714189]
[1753966159900,0.03,179.45,179.44,70.85714189]
[1753966160073,0.03,179.46,179.45,16.78468397]
[1753966160276,0.03,179.47,179.45,31.23683134]
[1753966160603,0.03,179.47,179.46,52.22147568]
[1753966162406,0.03,179.5,179.49,26.0]
[1753966162699,0.03,179.5,179.49,90.62424845]
[1753966162882,0.03,179.5,179.49,91.28424845]
[1753966164416,0.03,179.5,179.49,96.85558947]
[1753966165821,1e-08,179.52,179.5,16.78468397]
[1753966165990,1e-08,179.52,179.51,90.58424845]
[1753966166189,1e-08,179.52,179.51,91.24424845]
[1753966166595,1e-08,179.52,179.51,57.23496874]
[1753966166915,1e-08,179.52,179.51,56.57496874]
[1753966167093,1e-08,179.52,179.51,87.93540426]
[1753966167295,1e-08,179.52,179.51,96.15496874]
[1753966168194,1e-08,179.52,179.51,96.81496874]
[1753966168595,1e-08,179.52,179.51,87.93540426]
[1753966168826,1e-08,179.52,179.51,90.58424845]
[1753966168990,1e-08,179.52,179.51,96.81496874]
[1753966169326,1e-08,179.52,179.51,90.58424845]
[1753966169502,1e-08,179.52,179.51,56.36468397]
[1753966169705,8.91956449,179.52,179.46,1.5036]
[1753966169911,8.21956448,179.51,179.47,56.38468397]
[1753966170104,8.21956448,179.51,179.47,61.9565892]
[1753966170105,0.7,179.51,179.47,61.9565892]
[1753966170298,1e-08,179.52,179.49,25.00424845]
[1753966170504,1e-08,179.52,179.51,25.00424845]
[1753966170698,1e-08,179.52,179.51,30.57496874]
[1753966170908,1e-08,179.52,179.51,70.81496874]
[1753966172922,1e-08,179.52,179.51,62.59540426]
[1753966173220,1e-08,179.52,179.51,70.81496874]
[1753966173798,1e-08,179.53,179.51,85.21293322]
[1753966173999,1e-08,179.53,179.52,36.08545392]
[1753966175512,1e-08,179.53,179.52,41.6558639]
[1753966176529,0.03,179.58,179.55,42.78468397]
[1753966176704,0.03,179.58,179.57,25.00424845]
[1753966177027,0.03,179.58,179.57,64.62424845]
[1753966177330,0.03,179.58,179.57,65.28424845]
[1753966177830,0.03,179.58,179.57,70.85310739]
[1753966179229,0.03,179.58,179.57,70.21310739]
[1753966179603,0.03,179.58,179.57,70.87310739]
[1753966180323,0.03,179.58,179.57,70.21310739]
[1753966181727,0.03,179.58,179.57,70.87310739]
[1753966183334,0.1,179.62,179.57,71.42999328]
[1753966183530,0.1,179.62,179.58,25.66424845]
[1753966185247,0.03,179.59,179.58,31.23279728]
[1753966188843,0.03,179.59,179.58,28.03868098]
[1753966190324,0.03,179.61,179.6,42.78468397]
[1753966190533,0.03,179.61,179.6,87.94692502]
[1753966190720,0.03,179.61,179.6,88.60692502]
[1753966191539,0.03,179.61,179.6,93.51485375]
[1753966191937,0.03,179.61,179.6,48.90940557]
[1753966192143,0.75,179.61,179.6,92.93806088]
[1753966192434,0.03,179.61,179.6,92.93806088]
[1753966193612,0.03,179.61,179.6,93.59806088]
[1753966194532,0.03,179.61,179.6,67.59806088]
[1753966197341,1e-08,179.61,179.6,67.59806088]
[1753966199027,1e-08,179.61,179.6,27.37806088]
[1753966199239,1e-08,179.61,179.6,66.91806088]
[1753966200356,0.72000001,179.61,179.6,27.37806088]
[1753966200545,0.72000001,179.61,179.6,66.91806088]
[1753966201054,0.72000001,179.61,179.6,27.37806088]
[1753966201255,0.72000001,179.61,179.6,16.78468397]
[1753966201462,0.72000001,179.61,179.56,16.78468397]
[1753966201627,5.02544818,179.59,179.55,5.56947925]
[1753966201821,0.72,179.58,179.56,39.56]
[1753966202026,0.72,179.57,179.56,39.56]
[1753966202729,0.72,179.57,179.56,56.34468397]
[1753966203331,1e-08,179.61,179.57,16.78468397]
[1753966203539,1e-08,179.61,179.6,47.81013215]
[1753966203738,1e-08,179.61,179.6,87.41013215]
[1753966203955,1e-08,179.61,179.6,88.07013215]
[1753966204340,1e-08,179.61,179.6,87.41013215]
[1753966204852,1e-08,179.61,179.6,88.07013215]
[1753966205046,1e-08,179.61,179.6,94.19485375]
[1753966205629,1e-08,179.62,179.61,16.78468397]
[1753966205843,1e-08,179.62,179.61,61.41013215]
[1753966206747,1e-08,179.62,179.61,64.57491365]
[1753966206953,1e-08,179.62,179.61,70.14253237]
[1753966207343,1e-08,179.62,179.61,71.35929424]
[1753966208140,1e-08,179.62,179.61,70.69929424]
[1753966208455,1e-08,179.62,179.61,30.54253237]
[1753966208644,0.72000001,179.62,179.61,22.35230269]
[1753966208843,0.72000001,179.62,179.61,70.12253237]
[1753966209153,0.72000001,179.62,179.61,56.36468397]
[1753966209345,0.72000001,179.62,179.61,70.12253237]
[1753966209675,0.72000001,179.62,179.61,70.67929424]
[1753966209676,1e-08,179.62,179.61,70.67929424]
[1753966209971,1e-08,179.62,179.61,70.12253237]
[1753966210459,1e-08,179.62,179.61,70.78253237]
[1753966211753,1e-08,179.63,179.61,70.78253237]
[1753966211945,1e-08,179.63,179.62,26.19164452]
[1753966212145,0.1,179.65,179.64,26.0]
[1753966212330,0.1,179.65,179.64,65.13158254]
[1753966212331,1e-08,179.65,179.64,65.13158254]
[1753966212765,1e-08,179.65,179.64,65.79158254]
[1753966213348,1e-08,179.65,179.64,71.35827147]
[1753966214739,1e-08,179.65,179.64,31.75827147]
[1753966214940,1e-08,179.65,179.64,71.37827147]
[1753966215341,1e-08,179.65,179.64,31.75827147]
[1753966215542,1e-08,179.65,179.64,71.37827147]
[1753966216053,1e-08,179.65,179.64,71.35827147]
[1753966217737,0.1,179.69,179.66,26.0]
[1753966217942,0.1,179.69,179.65,16.78468397]
[1753966217943,0.1,179.69,179.68,24.97491365]
[1753966218354,0.1,179.69,179.68,25.63491365]
[1753966219955,0.1,179.69,179.68,57.20036333]
[1753966220353,0.1,179.69,179.68,48.35013365]
[1753966220558,0.1,179.69,179.68,56.54036333]
[1753966221556,0.78,179.69,179.68,70.10036333]
[1753966221855,0.78,179.69,179.68,61.95013365]
[1753966222244,0.78,179.69,179.68,70.14036333]
[1753966222465,0.1,179.69,179.68,70.14036333]
[1753966222671,0.1,179.69,179.68,70.84036333]
[1753966223167,0.1,179.69,179.68,70.14036333]
[1753966223549,0.1,179.69,179.68,70.84036333]
[1753966224353,0.1,179.69,179.68,54.05567936]
[1753966224549,0.68,179.75,179.69,16.78468397]
[1753966224752,0.68,179.75,179.73,8.19022968]
[1753966225051,0.68,179.75,179.74,39.58]
[1753966225276,6.2386,179.76,179.74,39.58]
[1753966225869,6.2386,179.76,179.74,47.77022968]
[1753966226060,0.68,179.75,179.74,53.33382153]
[1753966226372,8.87022968,179.75,179.71,45.14446696]
[1753966226571,0.68,179.74,179.72,8.19022968]
[1753966226764,0.68,179.74,179.73,39.6]
[1753966227167,6.2386,179.76,179.73,44.62057817]
[1753966227377,0.1,179.77,179.75,5.02057817]
[1753966227674,0.1,179.77,179.75,44.60057817]
[1753966228377,0.1,179.77,179.76,10.58355102]
[1753966229273,0.1,179.77,179.76,27.36823499]
[1753966231882,0.1,179.77,179.76,28.06823499]
[1753966232053,0.1,179.77,179.76,22.34765682]
[1753966232253,0.78,179.77,179.75,22.34791174]
[1753966232452,0.68,179.76,179.75,5.56322777]
[1753966232793,0.1,179.77,179.75,45.14322777]
[1753966233265,0.78,179.77,179.75,45.14322777]
[1753966233669,0.1,179.77,179.76,21.80526214]
[1753966233979,0.1,179.77,179.76,27.36823499]
[1753966234770,0.1,179.77,179.76,22.34765682]
[1753966235171,0.78,179.77,179.76,56.34468397]
[1753966235374,0.78,179.77,179.76,39.56]
[1753966235578,0.1,179.77,179.76,45.12297285]
[1753966235777,0.1,179.77,179.76,39.56]
[1753966236081,0.78,179.77,179.76,39.56]
[1753966236264,5.80057817,179.77,179.7,16.78468397]
[1753966236463,5.70057817,179.76,179.71,44.58057817]
[1753966236666,0.68,179.75,179.71,44.58057817]
[1753966237181,5.02057817,179.76,179.73,16.78468397]
[1753966237484,0.78,179.77,179.74,39.56]
[1753966237865,0.78,179.77,179.74,45.12334685]
[1753966238268,0.1,179.77,179.74,45.82334685]
[1753966238465,0.1,179.77,179.76,5.02057817]
[1753966238783,0.1,179.77,179.76,44.56057817]
[1753966239588,0.1,179.77,179.76,50.12355102]
[1753966240169,0.1,179.77,179.76,67.60823499]
[1753966240965,0.1,179.77,179.76,66.90823499]
[1753966242188,0.1,179.77,179.76,67.60823499]
[1753966242377,0.1,179.77,179.76,93.60823499]
[1753966243670,0.1,179.77,179.76,92.90823499]
[1753966244188,0.78,179.77,179.76,92.90823499]
[1753966244390,0.1,179.77,179.76,92.90823499]
[1753966245269,0.1,179.77,179.76,93.60823499]
[1753966246285,0.1,179.8,179.79,26.0]
[1753966246494,0.1,179.8,179.79,70.54057817]
[1753966246695,0.1,179.8,179.79,71.24057817]
[1753966246984,0.1,179.8,179.79,70.54057817]
[1753966247186,0.78,179.8,179.76,5.56297285]
[1753966247392,0.68,179.79,179.77,39.52]
[1753966247684,0.68,179.79,179.77,45.0824513]
[1753966248078,0.68,179.79,179.77,44.87293875]
[1753966249467,0.68,179.79,179.75,42.78468397]
[1753966249468,0.68,179.78,179.75,42.78468397]
[1753966249669,0.1,179.8,179.73,13.90933722]
[1753966249670,5.02057817,179.76,179.73,16.78468397]
[1753966249867,0.68,179.77,179.69,0.7]
[1753966249868,0.68,179.75,179.69,0.7]
[1753966250070,5.02057817,179.71,179.68,5.56544968]
[1753966250277,5.70057817,179.72,179.69,39.52]
[1753966250872,5.02057817,179.72,179.69,39.52]
[1753966251265,0.72,179.75,179.69,17.46468397]
[1753966251466,0.72,179.75,179.71,16.78468397]
[1753966251704,5.02057817,179.75,179.72,39.52]
[1753966251919,5.02057817,179.73,179.7,16.78468397]
[1753966252199,7.09838115,179.77,179.68,5.56544968]
[1753966252396,0.72,179.72,179.69,39.52]
[1753966252567,7.09838115,179.77,179.69,39.52]
[1753966252770,0.72,179.71,179.69,39.52]
[1753966253181,5.74057817,179.71,179.7,0.06]
[1753966254176,5.02057817,179.72,179.7,0.06]
[1753966254377,5.02057817,179.75,179.7,40.26]
[1753966254682,5.02057817,179.73,179.7,39.58]
[1753966254880,5.02057817,179.72,179.7,39.58]
[1753966255481,5.02057817,179.73,179.7,45.82476863]
[1753966255679,5.02057817,179.74,179.7,45.82476863]
[1753966255874,5.02057817,179.73,179.7,45.82476863]
[1753966256506,7.81840881,179.77,179.7,45.14476863]
[1753966256675,5.02057817,179.75,179.71,0.68]
[1753966256871,5.02057817,179.75,179.72,39.68]
[1753966257310,5.02057817,179.76,179.72,39.68]
[1753966257605,5.02057817,179.75,179.72,45.92411082]
[1753966257803,5.02057817,179.74,179.72,39.68]
[1753966257973,5.02057817,179.74,179.72,45.24421096]
[1753966258176,5.02057817,179.76,179.72,45.24421096]
[1753966258380,2.2557,179.77,179.73,0.68]
[1753966258586,6.55627817,179.77,179.73,0.68]
[1753966258784,5.02057817,179.76,179.73,0.68]
[1753966259393,1.5357,179.77,179.72,50.26478913]
[1753966259580,5.02057817,179.76,179.72,50.94478913]
[1753966259783,5.02057817,179.76,179.72,45.92421096]
[1753966260488,6.6177,179.79,179.75,5.02057817]
[1753966260801,6.6177,179.79,179.73,26.68]
[1753966260802,0.03,179.79,179.76,45.34057817]
[1753966261502,0.03,179.79,179.77,5.5626634]
[1753966261685,5.74057817,179.78,179.74,39.66]
[1753966261894,0.72,179.77,179.74,39.66]
[1753966262078,5.02057817,179.78,179.74,50.2441257]
[1753966262283,5.77057817,179.79,179.74,50.9241257]
[1753966262698,5.77057817,179.79,179.74,45.90354753]
[1753966263008,5.77057817,179.79,179.74,50.9241257]
[1753966263216,5.02057817,179.78,179.74,45.90354753]
[1753966263383,5.74057817,179.78,179.74,45.22354753]
[1753966263904,5.02057817,179.75,179.71,26.0]
[1753966264197,5.74057817,179.75,179.71,45.2043041]
[1753966264400,5.74057817,179.75,179.71,45.8843041]
[1753966265004,5.02057817,179.75,179.71,45.8843041]
[1753966266088,5.74057817,179.75,179.71,39.64]
[1753966266283,5.02057817,179.75,179.71,45.88439852]
[1753966266987,5.02057817,179.76,179.71,50.90497669]
[1753966267185,5.02057817,179.76,179.71,50.22497669]
[1753966267387,5.02057817,179.76,179.72,0.68]
[1753966268205,5.02057817,179.75,179.71,45.20439852]
[1753966268408,5.02057817,179.75,179.71,45.88439852]
[1753966268605,26.03,179.79,179.72,0.68]
[1753966268781,3.69247183,179.78,179.74,5.02057817]
[1753966268982,3.72247183,179.79,179.75,5.70057817]
[1753966269287,3.72247183,179.79,179.75,0.68]
[1753966270394,8.74305,179.79,179.75,0.68]
[1753966270592,3.72247183,179.79,179.75,11.26383186]
[1753966270907,5.02057817,179.76,179.72,0.68]
[1753966271098,0.72,179.78,179.7,5.76057817]
[1753966271099,5.02057817,179.75,179.7,5.76057817]
[1753966271406,5.02057817,179.75,179.71,0.68]
[1753966271796,5.02057817,179.75,179.71,45.86441506]
[1753966273120,5.74057817,179.76,179.72,0.68]
[1753966274684,0.03,179.79,179.75,10.58361844]
[1753966274899,0.03,179.79,179.76,5.02057817]
[1753966275204,0.03,179.79,179.76,0.68]
[1753966275408,0.03,179.79,179.75,5.02057817]
[1753966275614,5.02057817,179.78,179.74,0.74]
[1753966276020,5.02057817,179.78,179.74,6.30358098]
[1753966276404,5.77057817,179.79,179.74,11.32415915]
[1753966276590,0.75,179.79,179.74,6.30358098]
[1753966276789,5.02057817,179.78,179.74,6.30358098]
[1753966278503,5.02057817,179.78,179.74,0.74]
[1753966278690,5.74057817,179.78,179.74,0.74]
[1753966279588,11.30297594,179.78,179.74,0.06]
[1753966279788,5.02057817,179.75,179.74,0.06]
[1753966279985,5.02057817,179.76,179.74,0.06]
[1753966280189,5.02057817,179.77,179.74,0.06]
[1753966280389,5.02057817,179.77,179.74,0.74]
[1753966280605,8.7167275,179.78,179.74,0.74]
[1753966280810,6.31213404,179.79,179.75,5.70057817]
[1753966280811,5.05057817,179.79,179.75,5.70057817]
[1753966281015,0.03,179.79,179.76,5.02057817]
[1753966281208,0.03,179.79,179.76,5.71057817]
[1753966281420,0.03,179.79,179.76,0.69]
[1753966282093,5.05057817,179.79,179.75,5.56305038]
[1753966282299,5.77057817,179.79,179.75,5.56305038]
[1753966282496,5.02057817,179.78,179.74,6.3134953]
[1753966282700,5.74057817,179.78,179.74,0.06]
[1753966283610,5.74057817,179.78,179.74,0.75]
[1753966283824,0.03,179.79,179.75,5.02057817]
[1753966283994,5.77057817,179.79,179.74,10.64412007]
[1753966284201,5.05057817,179.79,179.75,0.69]
[1753966284503,0.03,179.79,179.76,0.69]
[1753966284695,0.03,179.79,179.78,5.02057817]
[1753966285107,0.03,179.79,179.78,5.71057817]
[1753966285896,0.03,179.79,179.77,5.02057817]
[1753966286198,0.03,179.79,179.76,6.25270617]
[1753966286418,0.03,179.79,179.77,5.71057817]
[1753966287508,0.03,179.79,179.75,66.90842911]
[1753966287705,0.03,179.79,179.76,0.69]
[1753966287926,0.03,179.79,179.75,50.12374514]
[1753966288229,0.03,179.79,179.75,50.81374514]
[1753966288609,5.05057817,179.79,179.75,45.79323895]
[1753966288943,0.03,179.79,179.78,5.02057817]
[1753966289105,0.03,179.79,179.77,5.02057817]
[1753966289307,0.03,179.79,179.78,5.56235398]
[1753966289550,0.03,179.79,179.77,0.69]
[1753966289759,0.03,179.79,179.77,5.71057817]
[1753966290737,0.03,179.79,179.77,0.69]
[1753966291830,0.03,179.79,179.76,39.56]
[1753966292033,0.03,179.79,179.77,0.69]
[1753966293029,0.03,179.79,179.77,5.71057817]
[1753966293267,0.03,179.79,179.78,0.69]
[1753966294259,0.03,179.79,179.78,5.71057817]
[1753966295265,0.03,179.79,179.78,11.27293215]
[1753966295466,0.03,179.79,179.78,28.05761612]
[1753966295635,0.03,179.79,179.78,50.81293215]
[1753966296564,0.03,179.79,179.78,45.79235398]
[1753966296756,0.03,179.79,179.78,50.81293215]
[1753966297362,0.03,179.79,179.78,50.79293215]
[1753966299876,0.03,179.79,179.78,67.57761612]
[1753966301182,0.03,179.79,179.78,28.05761612]
[1753966301351,0.03,179.79,179.78,67.57761612]
[1753966302175,0.03,179.79,179.78,50.79293215]
[1753966302372,0.03,179.79,179.78,50.10293215]
[1753966302678,0.03,179.79,179.78,50.79293215]
[1753966305571,0.03,179.79,179.78,67.57761612]
[1753966306988,0.03,179.79,179.78,28.05761612]
[1753966307287,0.03,179.79,179.78,67.57761612]
[1753966320614,0.1,179.8,179.79,16.78468397]
[1753966320799,0.1,179.8,179.79,22.47526214]
[1753966321503,0.1,179.8,179.79,61.32526214]
[1753966322094,0.1,179.8,179.79,21.80526214]
[1753966322298,0.1,179.8,179.79,28.03730674]
[1753966323217,0.1,179.8,179.79,67.53730674]
[1753966323401,0.1,179.8,179.79,28.03730674]
[1753966323919,0.03,179.81,179.79,73.11408937]
[1753966324092,0.03,179.81,179.8,53.49584031]
[1753966324430,0.03,179.81,179.8,59.05757557]
[1753966324599,0.03,179.81,179.8,54.0369974]
[1753966325233,0.68,179.87,179.81,16.78468397]
[1753966325526,0.68,179.87,179.86,5.02057817]
[1753966325709,0.68,179.87,179.86,39.5]
[1753966326117,0.68,179.87,179.85,39.5]
[1753966326694,0.68,179.87,179.84,10.58095277]
[1753966326899,0.68,179.87,179.84,44.52057817]
[1753966327103,0.68,179.86,179.84,44.52057817]
[1753966327301,3.70748384,179.89,179.85,5.02057817]
[1753966327503,0.68,179.88,179.86,5.02057817]
[1753966327710,0.68,179.87,179.85,5.02057817]
[1753966327900,0.68,179.87,179.84,44.52057817]
[1753966328103,5.02057817,179.89,179.84,44.52057817]
[1753966328333,4.38893387,179.89,179.85,5.02057817]
[1753966328636,0.68,179.88,179.85,10.58064674]
[1753966328832,0.68,179.87,179.85,10.58064674]
[1753966329035,0.68,179.89,179.85,10.58064674]
[1753966329203,0.68,179.89,179.86,44.52057817]
[1753966329403,0.68,179.89,179.86,39.5]
[1753966329616,3.70897123,179.9,179.86,39.5]
[1753966329617,0.68,179.88,179.86,39.5]
[1753966330244,4.38897123,179.9,179.86,44.52057817]
[1753966330419,3.70897123,179.9,179.86,5.02057817]
[1753966330739,5.70057817,179.89,179.82,14.57279168]
[1753966330947,0.68,179.88,179.84,5.02057817]
[1753966331241,0.68,179.88,179.85,44.52057817]
[1753966331434,4.38923578,179.9,179.87,5.02057817]
[1753966331631,0.68,179.89,179.86,39.5]
[1753966331942,0.68,179.88,179.86,39.5]
[1753966332127,0.68,179.87,179.83,36.58138559]
[1753966332328,0.68,179.86,179.85,39.5]
[1753966332625,5.70057817,179.86,179.8,0.67]
[1753966332822,0.68,179.86,179.82,5.02057817]
[1753966333021,4.38923578,179.89,179.85,5.02057817]
[1753966333218,0.68,179.89,179.86,5.02057817]
[1753966333833,0.68,179.89,179.85,45.19057817]
[1753966334551,0.68,179.89,179.86,5.5598799]
[1753966334723,3.70923578,179.9,179.86,11.25045807]
[1753966334925,4.38923578,179.9,179.86,11.25045807]
[1753966335131,8.72981395,179.91,179.86,10.58045807]
[1753966335339,0.68,179.9,179.86,5.5598799]
[1753966335549,3.70923578,179.9,179.86,5.5598799]
[1753966335839,0.68,179.89,179.86,5.5598799]
[1753966337435,8.72981395,179.91,179.82,16.78468397]
[1753966337436,5.02057817,179.87,179.82,16.78468397]
[1753966337636,0.68,179.86,179.83,39.5]
[1753966338551,5.70057817,179.86,179.82,45.73100888]
[1753966338850,5.70057817,179.86,179.82,6.23100888]
[1753966339046,5.02057817,179.83,179.79,5.56183024]
[1753966339348,5.02057817,179.84,179.8,39.5]
[1753966339742,5.70057817,179.84,179.8,39.5]
[1753966340647,5.70057817,179.83,179.8,39.5]
[1753966340880,5.97519021,179.85,179.8,39.5]
[1753966341029,5.02057817,179.82,179.8,39.5]
[1753966341362,5.02057817,179.83,179.8,40.21]
[1753966342224,5.02057817,179.83,179.8,45.77173501]
[1753966342644,5.69057817,179.83,179.8,39.5]
[1753966342948,5.69057817,179.86,179.81,5.73057817]
[1753966343254,5.69057817,179.85,179.81,5.73057817]
[1753966343454,0.67,179.85,179.81,5.73057817]
[1753966343832,5.02057817,179.84,179.81,6.27136186]
[1753966344247,0.67,179.85,179.81,6.27136186]
[1753966344446,3.71240555,179.86,179.81,5.56136186]
[1753966344659,5.02057817,179.85,179.81,6.27136186]
[1753966344837,3.71240555,179.87,179.82,0.71]
[1753966345029,5.02057817,179.85,179.82,0.71]
[1753966345353,5.02057817,179.86,179.83,0.71]
[1753966345927,3.71240555,179.87,179.84,5.56049822]
[1753966346123,3.71240555,179.87,179.84,11.29107639]
[1753966346347,3.71240555,179.88,179.84,11.29107639]
[1753966346523,8.73298372,179.88,179.84,6.27049822]
[1753966346960,9.40298372,179.88,179.84,6.27049822]
[1753966347166,3.71240555,179.87,179.84,6.27049822]
[1753966347652,9.40298372,179.87,179.84,5.56049822]
[1753966347857,5.69057817,179.87,179.84,5.56049822]
[1753966348349,3.71344334,179.88,179.86,5.02057817]
[1753966348655,0.03,179.89,179.87,0.71]
[1753966348857,3.74344334,179.89,179.87,0.71]
[1753966349031,3.74344334,179.89,179.88,0.71]
[1753966349232,0.03,179.89,179.88,0.71]
[1753966349442,0.03,179.89,179.88,11.2898399]
[1753966349757,0.03,179.89,179.88,6.26926173]
[1753966350144,0.03,179.89,179.88,28.07452387]
[1753966351826,0.03,179.89,179.85,26.71]
[1753966352069,0.03,179.89,179.86,56.28468397]
[1753966352245,0.03,179.89,179.86,56.99468397]
[1753966352846,0.03,179.89,179.86,17.49468397]
[1753966353132,0.03,179.89,179.86,66.84503429]
[1753966353338,0.03,179.89,179.87,0.71]
[1753966353857,0.03,179.89,179.88,0.71]
[1753966354265,0.03,179.89,179.86,62.53445612]
[1753966354435,0.03,179.89,179.86,67.55503429]
[1753966354856,0.03,179.89,179.87,0.71]
[1753966355237,0.03,179.89,179.87,5.73057817]
[1753966355437,0.03,179.89,179.87,45.21057817]
[1753966355638,0.03,179.89,179.88,0.71]
[1753966357659,0.03,179.89,179.88,11.2898399]
[1753966359262,0.03,179.89,179.88,5.55926173]
[1753966359567,0.03,179.89,179.88,0.71]